Cogmind - Beta 15 *** ADVENTURER MODE // 2025.07.27 @ 17:11:06 Player: LegoMDS Result: Destroyed by Piercing Trap Performance ------------- Evolutions (0) 0 Regions Visited (3) 600 Robots Destroyed (18) 90 Value Destroyed (541) 541 Prototype IDs (4) 80 Alien Tech Used (0) 0 Bonus (40) 40 TOTAL SCORE: 1351 Bonus ------- Follower Combat Kills 40 Cogmind --------- Core Integrity 0/250 Matter 300/300 Energy 148/150 System Corruption 0% Temperature Cool (0) Movement Rolling (120) Ox1 Location -10/Subcaves Parts ------- > --- POWER (1) -------- Light Angular Momentum Engine > --- PROPULSION (2) --- Subdweller Monowheel Subdweller Monowheel > --- UTILITY (2) ------ High-capacity Storage Unit Makeshift Light Armor Plating > --- WEAPON (2) ------- Battle Rifle Battle Cannon > --- INVENTORY (20) --- Subdweller Power Source Subdweller Power Source Subdweller Power Source Subdweller Monowheel Improved Heat Sink Large Matter Pod (150) Subdweller Optics Targeting Computer Makeshift Light Armor Plating Scrap Shield Scrap Shield Heavy Riot Gun Subdweller Machine Gun Battle Cannon Subdweller Shrapnel Launcher Dirty Datajack (20) Flamer Scrap Shield Fragment (46) Peak State ------------ > --- POWER ------------ Light Angular Momentum Engine > --- PROPULSION ------- Subdweller Monowheel Subdweller Monowheel > --- UTILITY ---------- High-capacity Storage Unit Makeshift Light Armor Plating > --- WEAPON ----------- Battle Rifle Battle Cannon > --- INVENTORY -------- Subdweller Power Source Subdweller Power Source Subdweller Power Source Subdweller Monowheel Improved Heat Sink Large Matter Pod Subdweller Optics Targeting Computer Propulsion Shielding Light Armor Plating Scrap Shield Scrap Shield Heavy Riot Gun Subdweller Machine Gun Subdweller Shrapnel Launcher Dirty Datajack Flamer Scrap Shield Fragment [Rating: 22] Favorites ----------- Power Light Nuclear Core Engine Light Ion Engine Power Core Light Nuclear Core Propulsion Wheel Wheel Wheel Utility High-capacity Storage Unit Device Improved Heat Sink Storage High-capacity Storage Unit Protection Propulsion Shielding Weapon Light Assault Rifle Energy Gun Particle Gun Ballistic Gun Light Assault Rifle Ballistic Cannon Battle Cannon Special Weapon Mining Laser Build | -11 -10 -10 -10 ------- Run | Yrd Mat Min Sub Slots Evolved . | . . . . Power . | . . . . Propulsion . | . . . . Utility . | . . . . Weapon . | . . . . Parts Attached 27 | 7 5 1 14 Power 5 | 1 1 . 3 Engine 3 | 1 . . 2 Core 2 | . 1 . 1 Reactor . | . . . . Propulsion 7 | 2 2 . 3 Treads . | . . . . Leg . | . . . . Wheel 7 | 2 2 . 3 Hover . | . . . . Flight . | . . . . Utility 6 | 1 2 . 3 Device 1 | . 1 . . Storage 2 | 1 1 . . Processor . | . . . . Hackware . | . . . . Protection 3 | . . . 3 Artifact . | . . . . Weapon 9 | 3 . 1 5 Energy Gun 3 | 1 . 1 1 Energy Cannon . | . . . . Ballistic Gun 3 | 2 . . 1 Ballistic Cannon 2 | . . . 2 Launcher . | . . . . Special Weapon 1 | . . . 1 Impact Weapon . | . . . . Slashing Weapon . | . . . . Piercing Weapon . | . . . . Special Melee Weapon . | . . . . Unidentified Prototypes . | . . . . Parts Lost 6 | . . 1 5 Power 2 | . . . 2 Propulsion 3 | . . 1 2 Utility 1 | . . . 1 Weapon . | . . . . Highest Loss Streak 3 | . . 1 3 To Critical Strikes . | . . . . Average Backups 10 | 1 7 9 14 Power 1 | . . . 2 Propulsion . | . . . . Utility 3 | . 2 4 5 Weapon 4 | . 3 3 5 Tool/Special . | . . . . Unused Backups 21 | . 4 . 17 Power 3 | . 1 . 2 Propulsion . | . . . . Utility 8 | . . . 8 Weapon 9 | . 3 . 6 Tool/Special 1 | . . . 1 Average Slot Usage (%) 96 | . 93 95 98 Engine 4 | . 5 . 4 Core 9 | . 7 14 9 Wheel 27 | . 28 28 27 Device 5 | . 8 14 . Storage 14 | . 14 14 14 Protection 6 | . . . 13 Energy Gun 9 | . . 6 18 Ballistic Gun 15 | . 28 17 5 Ballistic Cannon 1 | . . . 3 Peak Build Rating 22 | 6 11 13 22 Average Rating 11 | 3 8 11 14 On Entrance 7 | . 6 11 13 Naked Turns . | . . . . Heaviest Build 58 | 10 48 50 58 Greatest Support 40 | 20 26 26 40 Greatest Overweight (x) 5 | . 1 1 5 Average Overweight (x) . | . . 1 1 Largest Inventory Capacity 20 | 8 20 20 20 Average Capacity 15 | 6 8 20 20 Most Carried 20 | 5 8 10 20 Average Carried 11 | 2 7 9 16 Final Capacity 20 | 8 20 20 20 Final Carried 20 | 2 8 9 20 Class Distribution -------------------- 100% | Mutant Dominant Class ---------------- Mutant | -10/Materials Mutant | -10/Mines Mutant | -10/Subcaves Resources | -11 -10 -10 -10 ----------- Run | Yrd Mat Min Sub Matter Collected 779 | 215 179 216 169 Remotely . | . . . . Salvage Created 567 | . 259 170 138 Parts 50 | . 24 12 14 Haulers Intercepted . | . . . . Recyclers Shooed . | . . . . Parts Field Recycled . | . . . . Retrieved Matter . | . . . . Parts Self-Destructed 13 | . . . 13 Prevented . | . . . . Kills | -11 -10 -10 -10 ------- Run | Yrd Mat Min Sub Combat Hostiles Destroyed 18 | . 10 4 4 Guns 17 | . 10 4 3 Cannons 1 | . . . 1 Classes Destroyed 3 | . 2 . 1 Swarmer 6 | . 6 . . Grunt 8 | . 4 4 . Subdweller 4 | . . . 4 Best Kill Streak 4 | . 4 2 1 Combat Bots Only 4 | . 4 2 1 Max Kills in Single Turn 1 | . 1 1 1 Gunslinging . | . . . . Exploded . | . . . . Melee . | . . . . Uniques/NPCs Destroyed . | . . . . Combat | -11 -10 -10 -10 -------- Run | Yrd Mat Min Sub Hostile Shots Fired 124 | . 56 34 34 Missed 44 | . 15 15 14 Hits 80 | . 41 19 20 Projectile 80 | . 41 19 20 Critical Strikes 2 | . . 1 1 Damage Taken 957 | . 324 194 439 Core 269 | . 99 36 134 Absorbed by Shields . | . . . . Redirected to Shielding 19 | . . . 19 Ignored by Resistances 265 | . 106 55 104 Regen/Repaired (Parts) 38 | . 38 . . Core Remaining (%) 100 | 100 . . . Volleys Fired 89 | . 42 22 25 Largest 2 | . 2 2 2 Hottest 130 | . 40 85 130 Shots Fired 172 | . 84 39 49 Gun 168 | . 84 39 45 Cannon 3 | . . . 3 Launcher . | . . . . Special 1 | . . . 1 Kinetic 121 | . 84 31 6 Thermal 51 | . . 8 43 Explosive . | . . . . Electromagnetic . | . . . . Robot Hit Streak 21 | . 14 9 21 Robot Miss Streak 5 | . 5 1 1 Penetration Max . | . . . . Secondary Targets 3 | . 1 1 1 Max Gunslinging Chain 1 | . 1 1 1 Shots Hit Robots 138 | . 61 33 44 Core Hits 42 | . 23 12 7 Critical Kills . | . . . . Critical Parts Destroyed . | . . . . Critical Strikes . | . . . . Melee Attacks . | . . . . Impact . | . . . . Slashing . | . . . . Piercing . | . . . . Sneak Attacks . | . . . . Combat Hostiles . | . . . . Follow-up Attacks . | . . . . Damage Inflicted 1149 | . 483 326 340 Guns 1102 | . 483 326 293 Cannons 47 | . . . 47 Explosions . | . . . . Melee . | . . . . Ramming . | . . . . Kinetic 779 | . 483 233 63 Thermal 370 | . . 93 277 Explosive . | . . . . Electromagnetic . | . . . . Impact . | . . . . Slashing . | . . . . Piercing . | . . . . Highest Corruption . | . . . . Average Corruption . | . . . . Corruption Purged . | . . . . Corruption Blocked . | . . . . Overload Shots . | . . . . Overflow Damage . | . . . . Projectiles . | . . . . Explosions . | . . . . Melee . | . . . . Knockbacks 1 | . . . 1 Impact . | . . . . Kinetic 1 | . . . 1 Secondary . | . . . . Self-Inflicted Damage . | . . . . Shots . | . . . . Rammed . | . . . . Targets Rammed . | . . . . Kicked . | . . . . Crushed . | . . . . Highest Temperature 140 | . 18 58 140 Average Temperature 47 | . 10 26 57 Received Heat Transfer 390 | . 144 165 81 Siege Activations . | . . . . Martial Activations . | . . . . Shielding Activations . | . . . . Robots Disrupted . | . . . . Combat Hostiles . | . . . . Robots Corrupted . | . . . . Combat Hostiles . | . . . . Parts Fried . | . . . . Impact Corruptions . | . . . . Robots Melted . | . . . . Combat Hostiles . | . . . . Parts Melted 1 | . . 1 . Heat Transferred 888 | . . 222 666 Parts Sabotaged . | . . . . Parts Stolen . | . . . . Parts Stripped . | . . . . Power Chain Reactions . | . . . . Alert | -11 -10 -10 -10 ------- Run | Yrd Mat Min Sub Maximum Alert Level . | . . . . Low Security (%) 100 | 100 100 100 . Level 1 . | . . . . Level 2 . | . . . . Level 3 . | . . . . Level 4 . | . . . . Level 5 . | . . . . High Security . | . . . . Max Security . | . . . . Peak Influence 105 | . 105 40 . Initial 8 | . . 8 . Average 40 | . 52 17 . Influence Increases 439 | . 289 110 40 Destroy 0b10 Robot/C 320 | . 200 80 40 Destroy Leader 60 | . 40 20 . Allied During Kill 1 | . . 1 . Successful Hack 4 | . 4 . . Disable Machine 9 | . . 9 . Lose Combat Pursuer 45 | . 45 . . Influence Decreases 439 | . 264 105 70 Entered New Map 35 | . . 17 18 Time Decay 372 | . 264 78 30 Lost Part 32 | . . 10 22 Squads Dispatched 3 | . 3 . . Investigation 3 | . 3 . . Extermination . | . . . . Reinforcement . | . . . . Assault . | . . . . Garrison . | . . . . Intercept . | . . . . Searches Triggered . | . . . . Construction Impeded . | . . . . Haulers Reinforced . | . . . . Active Scanning Responses . | . . . . Cargo Convoy Interrupts . | . . . . Stealth | -11 -10 -10 -10 --------- Run | Yrd Mat Min Sub Distress Signals 3 | . 3 . . Communications Jammed . | . . . . Distress Signals . | . . . . Times Spotted 30 | . 17 7 6 Peak Tracking Total 5 | . 5 3 2 Tactical Retreats 2 | . 2 . . Traps | -11 -10 -10 -10 ------- Run | Yrd Mat Min Sub Traps Triggered 4 | . 1 . 3 Indirectly . | . . . . Trap Hack Attempts . | . . . . Triggered . | . . . . Disarmed . | . . . . Reprogrammed . | . . . . Reused . | . . . . Traps Extracted . | . . . . Installed . | . . . . Triggered . | . . . . Machines | -11 -10 -10 -10 ---------- Run | Yrd Mat Min Sub Machines Disabled 1 | . . 1 . Max in Single Turn 1 | . . 1 . Machines Repaired . | . . . . Machines Dismantled . | . . . . Machines Sabotaged . | . . . . Overloaded Fab Kills . | . . . . Hacking | -11 -10 -10 -10 --------- Run | Yrd Mat Min Sub Machines Accessed 6 | . 6 . . Terminals 5 | . 5 . . Fabricators . | . . . . Repair Stations 1 | . 1 . . Recycling Units . | . . . . Scanalyzers . | . . . . Garrison Access . | . . . . Total Hacks 16 | . 16 . . Successful 7 | . 7 . . Failed 9 | . 9 . . Catastrophic 1 | . 1 . . Database Lockouts . | . . . . Manual . | . . . . Terminals 14 | . 14 . . Fabricators . | . . . . Repair Stations 2 | . 2 . . Recycling Units . | . . . . Scanalyzers . | . . . . Garrison Access . | . . . . Terminal Hacks 5 | . 5 . . Prototype ID Bank 2 | . 2 . . Hauler Manifests 1 | . 1 . . Zone Layout 2 | . 2 . . Fabricator Hacks . | . . . . Repair Station Hacks 2 | . 2 . . Scan Component 1 | . 1 . . Repair 1 | . 1 . . Recycling Unit Hacks . | . . . . Scanalyzer . | . . . . Garrison Access Hacks . | . . . . Unauthorized Hacks . | . . . . Terminals . | . . . . Fabricators . | . . . . Repair Stations . | . . . . Recycling Units . | . . . . Scanalyzers . | . . . . Garrison Access . | . . . . Data Cores Recovered . | . . . . Used . | . . . . Hacking Detections 4 | . 4 . . Full Trace Events 3 | . 3 . . Feedback Events . | . . . . Feedback Blocked . | . . . . Robot Schematics Acquired . | . . . . Robots Built . | . . . . Authchips . | . . . . Time . | . . . . Total Robot Build Rating . | . . . . Part Schematics Acquired . | . . . . Parts Built . | . . . . Authchips . | . . . . Time . | . . . . Total Part Build Rating . | . . . . Parts Repaired 1 | . 1 . . Time 38 | . 38 . . Parts Recycled . | . . . . Recycled Matter . | . . . . Retrieved Matter . | . . . . Retrieved Components . | . . . . Parts Scanalyzed . | . . . . Part Schematics Acquired . | . . . . Parts Damaged . | . . . . Bothacking | -11 -10 -10 -10 ------------ Run | Yrd Mat Min Sub Used RIF Installer . | . . . . Robots Hacked . | . . . . Non-combat . | . . . . Combat . | . . . . Robot Hacks Applied . | . . . . Relay Couplers Released . | . . . . Fabnet Peak Effective % . | . . . . Robots Rewired . | . . . . Allies Hacked . | . . . . Hacks Repelled . | . . . . Allies | -11 -10 -10 -10 -------- Run | Yrd Mat Min Sub Total Allies 1 | . . 1 . Largest Group 1 | . . 1 1 Highest-Rated Group 31 | . . 31 31 Highest-Rated Ally 31 | . . 31 31 Total Orders . | . . . . Ally Attacks 18 | . . 7 11 Total Damage 230 | . . 83 147 Kills 2 | . . . 2 Allies Corrupted . | . . . . Allies Melted . | . . . . Intel | -11 -10 -10 -10 ------- Run | Yrd Mat Min Sub Active Infowar (turns) . | . . . . Robot Analysis Total . | . . . . Derelict Logs Recovered 3 | . . 1 2 Drone Launches . | . . . . Drone Recoveries . | . . . . Exploration | -11 -10 -10 -10 ------------- Run | Yrd Mat Min Sub Turns Passed 1560 | 48 565 217 730 Spaces Moved 1216 | 44 476 146 550 Core 8 | 8 . . . Treads . | . . . . Legs . | . . . . Wheels 1208 | 36 476 146 550 Hover . | . . . . Flight . | . . . . Fastest Speed 50 | 50 80 105 105 Average Speed 97 | 74 83 105 109 Slowest Speed 155 | 80 105 105 155 Overloaded Moves . | . . . . Propulsion Burnouts . | . . . . Robots Hopped . | . . . . Potential Cave-ins . | . . . . Cave-ins Triggered . | . . . . Exploration Rate (%) 41 | 3 88 40 34 Regions Visited 3 Branch Regions 2 Pre-discovered Areas 3 | . . 2 1 Known Exits Taken . | . . . . Unknown Exits Taken 3 | 1 1 1 . Scrap Searched 15 | . . 1 14 Spaces Dug . | . . . . Terrain Destroyed . | . . . . Melee . | . . . . Projectile . | . . . . AOE . | . . . . Terrain Rammed . | . . . . Walls Destroyed . | . . . . Machines Disabled . | . . . . Actions | -11 -10 -10 -10 --------- Run | Yrd Mat Min Sub Total 1443 | 57 577 177 632 Wait 45 | . 36 4 5 Move 1213 | 43 475 145 550 Hop . | . . . . Pick Up 45 | 7 11 3 24 Fast Attach 4 | 1 2 . 1 Attach 11 | 5 . 2 4 Detach . | . . . . Swap 15 | 1 4 . 10 Drop 21 | . 7 1 13 Fire 89 | . 42 22 25 Melee . | . . . . Ram . | . . . . Kick . | . . . . Crush . | . . . . Escape Stasis . | . . . . Rewire . | . . . . Trap . | . . . . Miscellaneous . | . . . . Route ------- -11/Scrapyard -10/Materials (discovered 4 exits: [*Mat x2] / [*Min x2]) -10/Mines (discovered 2 exits: [*Mat] / [*Sub]) -10/Subcaves (discovered 1 exit: [*Mat]) History --------- Turn | Location | Event 19 | -11/Scrapyard | Discovered new exit (range 15) 49 | -11/Scrapyard | Entered Materials 150 | -10/Materials | Discovered new exit (range 16) 281 | -10/Materials | Discovered new exit (range 15) 306 | -10/Materials | Build established: Mutant 442 | -10/Materials | Discovered new exit (range 9) 507 | -10/Materials | Repaired Lgt. Nuclear Core 576 | -10/Materials | Discovered new exit (range 16) 614 | -10/Materials | Entered Mines 718 | -10/Mines | Escorted by a lone wolf Derelict 738 | -10/Mines | Learned location of Storage (-8) 771 | -10/Mines | Discovered new exit (range 10) 783 | -10/Mines | Core integrity fell below 50% 818 | -10/Mines | Discovered new exit (range 9) 831 | -10/Mines | Entered Subcaves 831 | -10/Subcaves | Accompanied by 1 ally 856 | -10/Subcaves | Shifting Twisted Machinery released Flamer 857 | -10/Subcaves | Shifting Twisted Machinery released Sub. Power Source 1309 | -10/Subcaves | Ambushed by Subdwellers from Twisted Machinery 1311 | -10/Subcaves | Core integrity fell below 20% 1371 | -10/Subcaves | Lost 3 parts (1p2n) 1451 | -10/Subcaves | Discovered new exit (range 15) 1485 | -10/Subcaves | Learned location of 1 exit from Materials 1494 | -10/Subcaves | Disturbed a concealed Subdweller 1549 | -10/Subcaves | Learned location of Zion (-7) 1561 | -10/Subcaves | Destroyed by Piercing Trap Last Messages --------------- Searching scrap... Found Spk. Treads. Found Battle Cannon. Found 58 Matter. Acquired Battle Cannon. Searching scrap... Found Mak. Light Armor Plating. Found Scrap Shield. Found 40 Matter. Subatomizers dissect the Battle Cannon. Dropped Mak. Light Armor Plating. Acquired 10 matter. Sub. Monowheel shoots sparks and powers down. Acquired derelict log, extracted data. World map updated: -7/Zion. Subatomizers dissect the Battle Cannon. Acquired 10 matter. Triggered Piercing Trap. Spikes shoot up from the floor. Critical hit (Impale). Map ----- +----------------------------------------------------+ | ????# #????????????????????????????? | | ????## ##???????????????????????????? | | ?????# #???????????????????????????? | | ?????# ### #???????????????????????????? | | ??#?## ##??# ???????????????????????? | | ?## # ###????# #????????????????????? | | ?# # %#####???# ###????????????????????? | | ???# ##???# ##??????????????????????? | | ???# ## #????# #????????????????????????? | | ???# ##% #####??????#?????????????????????????? | | ???## #????????????????????????????????????? | | ????## ##????????????????????????????????????? | | ?????## #????????????????????????????????????? | | ??????### #????????????????????????????????????? | | ?????### ##????????????????????????????????????? | | ?????# ##?????????????????? ?????????????????? | | ?????# #????????????????? ????????????????? | | ?????# #????????????????? #????????????????? | | ?????# #????????????????? #???? #??????????? | | ?????# ##????????????????? #??? ??????????? | | ?????## ##????????######???? ##? ???????????? | | ???#?# ##???????###< %<<##?? ## ????????????? | | ?? #?# " ##?????##< | &&<&##? ?????????????? | | ?? ### "" #?????#< <& <<## ??????????????? | | ? ## "" #????##< < <## ???????????????? | | ? ## " ##???#< @ # ????????????????? | | # # "= "#???#< ][] ## ## #?##??????????????? | | ?## =%####???# ]%%%!# #" ## ##?????????????? | | ???## ##?????# !!%#%[# #?????????????? | | #???###[[!##????# %%%!# ####??????????? | | ##### !% !##???#" [*[=# #" ##?????????? | | ##" [&&& #???## ###< ##????????? | | # " ## %"*#????#" "## ## #???? | | # " ####"& #????## " " ### #????? | | " ####"" #?????###" ""#### #????? | | ## #???????####### ???? | | ### #?????????????# ## ???? | | ### ##?????????????# #?# ????? | | ## "#####?????????# #?? ### #????? | | # "" #???????### ### ##??? ?????? | | "" #?????### #???????????? | | # ""##????# #???????????? | | # ###" % " ####?## #??????????? | | #?#" #### # ????????? | | #?#"" ### ???????? | | #?###""" < ### ### ???????? | | # ???##### ##?## ##??? ???????? | | # ## ???????##### ####????######?????????????? | | ##?######??????????####??????????????????????????? | | ?????????????????????????????????????????????????? | +----------------------------------------------------+ Best States ------------- Heat Dissipation 39 Energy Generation 18 Energy Capacity 200 Matter Stores 300 Matter Capacity 300 Sight Range 16 Terrain Scan Density 10 Armor Coverage 100 Resistance: KI 20 Resistance: TH 20 Resistance: EX 20 Resistance: EM 20 Resistance: I 20 Resistance: S 20 Resistance: P 20 Propulsion Shielding 33 Evasion (%) 44 Offensive Hacking 10 Item Schematics ----------------- None Robot Schematics ------------------ None Fabricated ------------ Nothing Repaired ---------- Lgt. Nuclear Core | 24% | -10/Materials Alien Tech Used ----------------- None Achievements -------------- None Challenges ------------ None Game ------ Seed ThermalUtilityProjector Manual? 0 Play Time 00:14:31 Cumulative 84.6 hours Start 2025.07.27 @ 16:58:49 End 2025.07.27 @ 17:11:06 Sessions 1 Manual Loads 0 Difficulty Adventurer Special Mode None Game No. 111 Rogue 13 Adventurer 98 Explorer 0 Win Type - Total 0 Types 0/0/0/0/0/0/0/0/0/0 Lore% 63 Gallery% 59 Achievement% 46 Wizard Run 0 Options --------- Layout 1 ASCII 0 Keyboard 0 Movement Mouse Keybinds 0 Fullscreen 1 Font 32/SmallcapsGlow Map View 50x35 Zoom Use 0% Tactical HUD 0 Map Filters NONE Filters NONE Steam 1 RUN: e767a492-f038-4779-bf43-df7b175ac5e6